fUST/lending_fUST_20250114
["ID","MTS","AMOUNT","RATE_DAILY","PERIOD"]
[348866689,1736830241678,-500.0,0.00021917,3]
[348866690,1736830241688,-520.76609432,0.00021917,3]
[348866691,1736830241697,-567.20543632,0.00021917,3]
[348866692,1736830241706,-675.43,0.00021917,3]
[348866693,1736830241715,-500.0,0.00021917,3]
[348866694,1736830241725,-585.82,0.00021917,3]
[348866695,1736830241734,-500.0,0.00021917,3]
[348866696,1736830241743,-500.0,0.00021917,3]
[348866697,1736830241753,-4749.47,0.00021917,3]
[348866698,1736830241764,-500.0,0.00021917,3]
[348866699,1736830241774,-500.0,0.00021917,3]
[348866700,1736830241784,-500.0,0.00021917,3]
[348866701,1736830241793,-500.0,0.00021917,3]
[348866702,1736830241803,-500.0,0.00021917,3]
[348866703,1736830241812,-500.0,0.00021917,3]
[348866704,1736830241821,-514.22757459,0.00021917,3]
[348866705,1736830241830,-500.0,0.00021917,3]
[348866706,1736830241840,-880.07,0.00021917,3]
[348866707,1736830241849,-500.0,0.00021917,3]
[348866708,1736830241859,-500.0,0.00021917,3]
[348866709,1736830241868,-500.0,0.00021917,3]
[348866710,1736830241877,-500.0,0.00021917,3]
[348866711,1736830241891,-500.0,0.00021917,3]
[348866712,1736830241901,-500.0,0.00021917,3]
[348866713,1736830241910,-500.0,0.00021917,3]
[348866714,1736830241919,-500.0,0.00021917,3]
[348866715,1736830241929,-6.68221242,0.00021917,3]
[348866730,1736830243121,-493.31778758,0.00021917,3]
[348866731,1736830243130,-500.0,0.00021917,3]
[348866732,1736830243139,-881.25,0.00021917,3]
[348866733,1736830243148,-500.0,0.00021917,3]
[348866734,1736830243158,-500.0,0.00021917,3]
[348866735,1736830243168,-500.0,0.00021917,3]
[348866736,1736830243178,-1378.28,0.00021917,3]
[348866737,1736830243189,-506.81165542,0.00021917,3]
[348866738,1736830243199,-500.0,0.00021917,3]
[348866739,1736830243210,-500.0,0.00021917,3]
[348866740,1736830243219,-756.37,0.00021917,3]
[348866741,1736830243229,-500.0,0.00021917,3]
[348866742,1736830243239,-500.0,0.00021917,3]
[348866743,1736830243248,-500.0,0.00021917,3]
[348866744,1736830243258,-500.95435323,0.00021917,3]
[348866746,1736830243267,-500.0,0.00021917,3]
[348866748,1736830243276,-500.0,0.00021917,3]
[348866750,1736830243285,-500.0,0.00021917,3]
[348866752,1736830243295,-500.0,0.00021917,3]
[348866754,1736830243304,-500.0,0.00021917,3]
[348866756,1736830243313,-482.07352741,0.00021917,3]
[348866779,1736830246202,-355.4,0.00021817,2]
[348866780,1736830351434,10000.0,0.00024,30]
[348866781,1736830366156,10000.0,0.00024,30]
[348866784,1736831164733,164.92748,0.00013973,2]
[348866785,1736831227124,-501.29124478,0.00017475,2]
[348866786,1736831227145,-65.612893,0.00018394,2]
[348866787,1736831231122,-434.387107,0.00018394,2]
[348866788,1736831231146,-97.9291956,0.00019,7]
[348866789,1736831232099,-468.97494218,0.00019,7]
[348866790,1736831232121,-500.0,0.00019363,2]
[348866791,1736831232144,-254.8103691,0.00019996,2]
[348866792,1736831232173,-713.06148456,0.0002,2]
[348866793,1736831249106,-2091.77670283,0.0002,2]
[348866794,1736831394238,200.0,0.00024,30]
[348866795,1736831406753,200.0,0.00024,30]
[348866805,1736831432411,-374.16181261,0.0002,2]
[348866807,1736831432421,-183.53207169,0.00020152,2]
[348867328,1736831438268,-19.60347731,0.00020152,2]
[348867329,1736831438278,-160.53695168,0.00020164,2]
[348867330,1736831438288,-458.0992282,0.00020189,2]
[348867331,1736831438298,-500.0,0.00020331,2]
[348867332,1736831438308,-157.41907032,0.000205,2]
[348867333,1736831438318,-209.19841565,0.0002072,2]
[348867334,1736831438327,-160.0,0.00020761,2]
[348867335,1736831438340,-365.706,0.0002082,2]
[348867336,1736831438349,-300.0,0.00020999,2]
[348867337,1736831438361,-2285.0,0.00020999,2]
[348867338,1736831438371,-9026.61016425,0.00021,2]
[348867339,1736831438381,-4683.868812,0.00021,3]
[348867340,1736831438391,-153.0,0.00021178,2]
[348867341,1736831438401,-153.0,0.00021178,2]
[348867342,1736831438410,-153.0,0.00021178,2]
[348867343,1736831438420,-153.0,0.00021178,2]
[348867344,1736831438429,-153.1150543,0.00021178,2]
[348867345,1736831438439,-177.372258,0.00021336,2]
[348867346,1736831438450,-500.0,0.00021347,2]
[348867347,1736831438460,-568.6059082,0.0002137,2]
[348867348,1736831438469,-307.6095688,0.0002137,2]
[348867349,1736831438480,-153.0,0.00021452,2]
[348867350,1736831438490,-153.0,0.00021452,2]
[348867351,1736831438500,-971.34684386,0.000216,4]
[348867352,1736831438513,-657.87204931,0.000216,4]
[348867353,1736831438526,-1549.78110683,0.000216,4]
[348867354,1736831438536,-154.5204804,0.000216,2]
[348867355,1736831438546,-460.7115761,0.000216,2]
[348867356,1736831438555,-302.7566616,0.000216,2]
[348867357,1736831438565,-332.9061218,0.000216,2]
[348867358,1736831438575,-153.5717534,0.000216,2]
[348867359,1736831438590,-428.8088492,0.000216,2]
[348867360,1736831438599,-200.0,0.000216,6]
[348867361,1736831438610,-200.0,0.000216,7]
[348867362,1736831438620,-200.0,0.000216,9]
[348867363,1736831438629,-177.372258,0.00021655,2]
[348867364,1736831438639,-2644.6,0.00021817,2]
[348867365,1736831438649,-500.0,0.00021916,2]
[348867366,1736831438659,-607.00114723,0.00021916,2]
[348867367,1736831438669,-500.0,0.00021916,2]
[348867368,1736831438679,-500.0,0.00021916,2]
[348867369,1736831438688,-500.0,0.00021916,2]
[348867370,1736831438699,-500.0,0.00021916,2]
[348867371,1736831438708,-500.0,0.00021916,2]
[348867372,1736831438717,-500.0,0.00021916,2]
[348867373,1736831438727,-596.60982629,0.00021916,2]
[348867374,1736831438737,-512.16755741,0.00021916,2]
[348867375,1736831438747,-223.57417304,0.00021916,2]
[348867376,1736831438757,-193.416,0.00021916,2]
[348867377,1736831438766,-500.0,0.00021916,7]
[348867378,1736831438776,-1487.49041373,0.00021917,5]
[348867379,1736831438789,-1036.21926674,0.00021917,5]
[348867380,1736831438801,-314.74,0.00021917,5]
[348867405,1736831440490,-1703.88250269,0.00021917,5]
[348867406,1736831440546,-546.57882163,0.00021917,5]
[348867444,1736832373173,165.569379,0.00013973,2]
[348867446,1736832432127,-150.0,0.000189,2]
[348867447,1736832432149,-166.518886,0.00020618,2]
[348867448,1736832432352,-203.1355505,0.00020812,2]
[348867449,1736832432374,-365.533,0.0002082,2]
[348867450,1736832432395,-200.0,0.000218,8]
[348867451,1736832432417,-154.732,0.000218,2]
[348867452,1736832432439,-786.85191399,0.00021815,2]
[348867453,1736832438111,-125.64648172,0.00021815,2]
[348867454,1736832438134,-353.53010334,0.00021817,2]
[348867455,1736832454193,-165.2798,0.00020642,2]
[348867456,1736832454217,-1282.67760017,0.00021817,2]
[348867457,1736832454243,-357.50461511,0.00021817,3]
[348867458,1736832454267,-47.53433775,0.00021914,2]
[348867462,1736832551088,-1152.52148812,0.00019,4]
[348867863,1736832636136,-1827.8244954,0.00020917,2]
[348867865,1736832636146,-610.19759585,0.00021804,6]
[348867867,1736832636155,-300.0,0.00021915,2]
[348867870,1736832636165,-285.0,0.00021915,2]
[348867872,1736832636175,-177.40109181,0.00021915,2]
[348867874,1736832636185,-159.01,0.00021916,2]
[348867876,1736832636195,-3506.07654718,0.00021916,5]
[348867888,1736832636304,-112062.13025633,0.00021916,5]
[348867890,1736832636314,-5291.94665431,0.00021916,5]
[348867964,1736832638452,-3747.887356,0.00021916,5]
[348867965,1736832638464,-6524.39133514,0.00021916,5]
[348867966,1736832638477,-152.98515,0.00021917,2]
[348867967,1736832638486,-151.0,0.00021917,2]
[348867968,1736832638495,-151.0,0.00021917,2]
[348867969,1736832638511,-151.0,0.00021917,2]
[348867970,1736832638523,-502.10938496,0.00021917,3]
[348867971,1736832638534,-516.06098103,0.00021917,3]
[348867972,1736832638543,-510.44730848,0.00021917,3]
[348867973,1736832638553,-500.0,0.00021917,3]
[348867974,1736832638565,-500.0,0.00021917,3]
[348867975,1736832638578,-502.54439206,0.00021917,3]
[348867976,1736832638588,-500.0,0.00021917,3]
[348867977,1736832638599,-500.0,0.00021917,3]
[348867978,1736832638609,-500.0,0.00021917,3]
[348867979,1736832638620,-616.87574267,0.00021917,3]
[348867981,1736832638630,-500.0,0.00021917,3]
[348867983,1736832638639,-500.0,0.00021917,3]
[348867985,1736832638650,-500.0,0.00021917,3]
[348867987,1736832638660,-500.0,0.00021917,3]
[348867988,1736832638669,-500.0,0.00021917,3]
[348867989,1736832638679,-151.0,0.00021917,2]
[348867990,1736832638688,-501.71344076,0.00021917,3]
[348867991,1736832638698,-151.0,0.00021917,2]
[348867992,1736832638707,-151.0,0.00021917,2]
[348867993,1736832638717,-155.382708,0.00021917,2]
[348867994,1736832638726,-506.933694,0.00021917,3]
[348867995,1736832638736,-630.48899789,0.00021917,3]
[348867996,1736832638746,-503.15065976,0.00021917,3]
[348867997,1736832638756,-503.45983079,0.00021917,3]
[348867998,1736832638765,-157.49876,0.00021917,2]
[348867999,1736832638774,-501.56363333,0.00021917,3]
[348868000,1736832638784,-509.87026154,0.00021917,3]
[348868001,1736832638793,-500.0,0.00021917,3]
[348868002,1736832638803,-500.0,0.00021917,3]
[348868003,1736832638813,-444.26950903,0.00021917,3]
[348868004,1736832638823,-191.22270291,0.00021917,3]
[348868005,1736832638842,-311.98863507,0.00021917,3]
[348868006,1736832638852,-500.0,0.00021917,3]
[348868007,1736832638862,-500.62764079,0.00021917,3]
[348868008,1736832638871,-500.0,0.00021917,3]
[348868009,1736832638881,-500.0,0.00021917,3]
[348868010,1736832638890,-500.0,0.00021917,3]
[348868011,1736832638899,-50.13372414,0.00021917,3]
[348868012,1736832638911,-449.86627586,0.00021917,3]
[348868013,1736832638921,-375.23209526,0.00021917,3]
[348868014,1736832638932,-124.76790474,0.00021917,3]
[348868015,1736832638941,-500.0,0.00021917,3]
[348868016,1736832638951,-500.0,0.00021917,3]
[348868017,1736832638961,-500.0,0.00021917,3]
[348868018,1736832638971,-500.0,0.00021917,3]
[348868019,1736832638980,-500.0,0.00021917,3]
[348868020,1736832638989,-500.0,0.00021917,3]
[348868021,1736832638999,-500.0,0.00021917,3]
[348868022,1736832639008,-500.0,0.00021917,3]
[348868023,1736832639018,-503.65791915,0.00021917,3]
[348868024,1736832639027,-500.0,0.00021917,3]
[348868025,1736832639037,-500.0,0.00021917,3]
[348868026,1736832639046,-223.38225728,0.00021917,2]
[348868027,1736832639056,-500.0,0.00021917,3]
[348868028,1736832639066,-500.0,0.00021917,3]
[348868029,1736832639075,-500.0,0.00021917,2]
[348868030,1736832639085,-500.0,0.00021917,3]
[348868031,1736832639096,-500.0,0.00021917,3]
[348868032,1736832639105,-503.62333767,0.00021917,3]
[348868033,1736832639115,-502.07724486,0.00021917,3]
[348868034,1736832639124,-500.0,0.00021917,3]
[348868035,1736832639134,-500.0,0.00021917,3]
[348868036,1736832639144,-286.25795829,0.00021917,3]
[348868037,1736832639155,-603.10378462,0.00021917,3]
[348868038,1736832639165,-500.0,0.00021917,3]
[348868039,1736832639176,-504.61917603,0.00021917,3]
[348868040,1736832639186,-500.0,0.00021917,3]
[348868041,1736832639195,-500.0,0.00021917,3]
[348868042,1736832639205,-500.0,0.00021917,3]
[348868043,1736832639216,-505.42,0.00021917,3]
[348868044,1736832639225,-500.0,0.00021917,3]
[348868045,1736832639235,-500.0,0.00021917,3]
[348868046,1736832639244,-500.0,0.00021917,3]
[348868047,1736832639254,-500.0,0.00021917,3]
[348868048,1736832639264,-500.0,0.00021917,3]
[348868049,1736832639275,-500.0,0.00021917,3]
[348868050,1736832639285,-500.0,0.00021917,3]
[348868051,1736832639296,-535.05515354,0.00021917,3]
[348868052,1736832639306,-500.0,0.00021917,3]
[348868053,1736832639316,-500.0,0.00021917,3]
[348868054,1736832639326,-500.0,0.00021917,3]
[348868055,1736832639335,-500.0,0.00021917,3]
[348868056,1736832639345,-504.22701338,0.00021917,3]
[348868057,1736832639355,-500.44578306,0.00021917,3]
[348868058,1736832639364,-500.0,0.00021917,3]
[348868059,1736832639375,-500.0,0.00021917,3]
[348868060,1736832639386,-500.0,0.00021917,3]
[348868061,1736832639397,-500.0,0.00021917,3]
[348868062,1736832639408,-500.0,0.00021917,3]
[348868063,1736832639418,-348.63712121,0.00021917,3]
[348868064,1736832639428,-500.0,0.00021917,3]
[348868065,1736832639440,-500.0,0.00021917,3]
[348868066,1736832639450,-500.0,0.00021917,3]
[348868067,1736832639461,-503.08592879,0.00021917,3]
[348868068,1736832639471,-501.86434631,0.00021917,3]
[348868069,1736832639480,-312.83671794,0.00021917,3]
[348868070,1736832639490,-500.0,0.00021917,3]
[348868071,1736832639500,-500.0,0.00021917,3]
[348868072,1736832639510,-501.21771799,0.00021917,3]
[348868073,1736832639519,-503.41557456,0.00021917,3]
[348868074,1736832639531,-500.0,0.00021917,3]
[348868075,1736832639543,-500.0,0.00021917,3]
[348868076,1736832639552,-500.0,0.00021917,3]
[348868077,1736832639563,-372.33220513,0.00021917,3]
[348868078,1736832639576,-500.0,0.00021917,3]
[348868079,1736832639586,-500.0,0.00021917,3]
[348868080,1736832639595,-500.0,0.00021917,3]
[348868081,1736832639605,-500.0,0.00021917,3]
[348868082,1736832639614,-501.83126108,0.00021917,3]
[348868083,1736832639624,-500.0,0.00021917,3]
[348868084,1736832639633,-200.0,0.00021917,3]
[348868085,1736832639642,-500.0,0.00021917,3]
[348868086,1736832639652,-500.0,0.00021917,3]
[348868087,1736832639662,-503.25407483,0.00021917,3]
[348868088,1736832639671,-500.0,0.00021917,3]
[348868089,1736832639680,-553.63,0.00021917,3]
[348868090,1736832639690,-500.0,0.00021917,3]
[348868091,1736832639699,-500.0,0.00021917,3]
[348868092,1736832639709,-500.0,0.00021917,3]
[348868093,1736832639719,-507.43132279,0.00021917,3]
[348868094,1736832639728,-251.73282208,0.00021917,3]
[348868095,1736832639738,-500.0,0.00021917,3]
[348868096,1736832639747,-500.0,0.00021917,3]
[348868097,1736832639756,-500.0,0.00021917,3]
[348868098,1736832639766,-500.0,0.00021917,3]
[348868099,1736832639775,-500.0,0.00021917,3]
[348868100,1736832639785,-500.0,0.00021917,3]
[348868101,1736832639794,-201.49739477,0.00021917,3]
[348868102,1736832639804,-500.0,0.00021917,3]
[348868103,1736832639814,-500.0,0.00021917,3]
[348868104,1736832639823,-595.22,0.00021917,3]
[348868105,1736832639833,-500.0,0.00021917,3]
[348868106,1736832639843,-501.50862057,0.00021917,3]
[348868107,1736832639852,-500.0,0.00021917,3]
[348868108,1736832639862,-500.0,0.00021917,3]
[348868109,1736832639872,-500.0,0.00021917,3]
[348868110,1736832639881,-500.0,0.00021917,3]
[348868111,1736832639891,-501.12587671,0.00021917,3]
[348868112,1736832639900,-500.0,0.00021917,3]
[348868113,1736832639910,-500.0,0.00021917,3]
[348868114,1736832639919,-500.0,0.00021917,3]
[348868115,1736832639929,-500.0,0.00021917,3]
[348868116,1736832639938,-500.0,0.00021917,3]
[348868117,1736832639947,-500.0,0.00021917,3]
[348868118,1736832639959,-500.0,0.00021917,3]
[348868119,1736832639969,-510.12,0.00021917,3]
[348868120,1736832639978,-500.0,0.00021917,3]
[348868121,1736832639988,-501.62472445,0.00021917,3]
[348868122,1736832639997,-500.0,0.00021917,3]
[348868124,1736832640007,-500.0,0.00021917,3]
[348868126,1736832640016,-150.0,0.00021917,3]
[348868128,1736832640025,-500.0,0.00021917,3]
[348868130,1736832640035,-500.0,0.00021917,3]
[348868131,1736832640045,-500.0,0.00021917,3]
[348868132,1736832640055,-500.0,0.00021917,3]
[348868133,1736832640064,-500.0,0.00021917,3]
[348868134,1736832640074,-500.0,0.00021917,3]
[348868135,1736832640084,-500.0,0.00021917,3]
[348868137,1736832640094,-500.0,0.00021917,3]
[348868139,1736832640104,-500.0,0.00021917,3]
[348868140,1736832640115,-500.0,0.00021917,3]
[348868141,1736832640126,-500.0,0.00021917,3]
[348868142,1736832640137,-500.0,0.00021917,3]
[348868143,1736832640147,-500.0,0.00021917,3]
[348868144,1736832640157,-500.0,0.00021917,3]
[348868145,1736832640167,-500.0,0.00021917,3]
[348868146,1736832640177,-501.26808259,0.00021917,3]
[348868147,1736832640187,-468.26542983,0.00021917,3]
[348868148,1736832640198,-500.0,0.00021917,3]
[348868149,1736832640209,-500.0,0.00021917,3]
[348868150,1736832640218,-5787.5,0.00021917,3]
[348868152,1736832640227,-500.0,0.00021917,3]
[348868153,1736832640388,-500.0,0.00021917,3]
[348868154,1736832640398,-500.0,0.00021917,3]
[348868155,1736832640407,-500.0,0.00021917,3]
[348868156,1736832640417,-500.0,0.00021917,3]
[348868157,1736832640427,-500.0,0.00021917,3]
[348868158,1736832640436,-500.0,0.00021917,3]
[348868159,1736832640446,-500.0,0.00021917,3]
[348868160,1736832640456,-560.93731703,0.00021917,3]
[348868161,1736832640465,-500.0,0.00021917,3]
[348868162,1736832640475,-500.0,0.00021917,3]
[348868163,1736832640484,-500.0,0.00021917,3]
[348868164,1736832640494,-500.0,0.00021917,3]
[348868165,1736832640503,-500.0,0.00021917,3]
[348868166,1736832640513,-500.0,0.00021917,3]
[348868167,1736832640522,-500.0,0.00021917,3]
[348868168,1736832640532,-500.0,0.00021917,3]
[348868170,1736832640541,-500.0,0.00021917,3]
[348868172,1736832640550,-500.0,0.00021917,3]
[348868174,1736832640560,-500.0,0.00021917,3]
[348868176,1736832640574,-502.51712298,0.00021917,3]
[348868178,1736832640583,-500.0,0.00021917,3]
[348868179,1736832640593,-500.0,0.00021917,3]
[348868180,1736832640602,-500.0,0.00021917,3]
[348868182,1736832640612,-500.0,0.00021917,3]
[348868184,1736832640622,-510.38731277,0.00021917,3]
[348868186,1736832640631,-500.0,0.00021917,3]
[348868187,1736832640642,-500.0,0.00021917,3]
[348868188,1736832640652,-500.0,0.00021917,3]
[348868190,1736832640664,-500.0,0.00021917,3]
[348868191,1736832640674,-243.13659268,0.00021917,3]
[348868192,1736832640684,-504.047271,0.00021917,3]
[348868193,1736832640693,-500.0,0.00021917,3]
[348868194,1736832640702,-767.97,0.00021917,3]
[348868195,1736832640712,-500.0,0.00021917,3]
[348868196,1736832640722,-500.47093772,0.00021917,3]
[348868197,1736832640732,-500.0,0.00021917,3]
[348868198,1736832640741,-134.37121518,0.00021917,3]
[348868226,1736832784956,200.0,0.00023984,30]
[348868227,1736832785228,200.0,0.00023997,30]
[348868229,1736833270553,165.524969,0.00013973,2]
[348868230,1736833576822,10000.0,0.00024,30]
[348868231,1736833598497,10000.0,0.00024,30]
[348868232,1736833626144,-155.13878809,0.00019817,2]
[348868233,1736833626167,-340.51217694,0.00020164,2]
[348868234,1736833626191,-365.498,0.0002082,2]
[348868235,1736833626213,-208.9082941,0.00021697,2]
[348868236,1736833626236,-157.477,0.00021816,2]
[348868237,1736833626258,-300.0,0.00021816,2]
[348868238,1736833626280,-281.21872365,0.00021817,2]
[348868239,1736833629111,-2446.60406477,0.00021817,2]
[348868240,1736833629137,-150.99218505,0.00021817,3]
[348868241,1736833635122,-1459.56382386,0.00021817,3]
[348868242,1736833643089,-421.21626421,0.00021817,3]
[348868257,1736833807959,5038.302,0.00024,30]
[348868298,1736833832827,-1426.7949328,0.00020905,2]
[348868300,1736833832837,-74.92067968,0.00021697,2]
[348868302,1736833832849,-133.98761442,0.00021697,2]
[348868304,1736833832859,-300.0,0.00021816,2]
[348868306,1736833832869,-19822.16815118,0.00021817,3]
[348868309,1736833832880,-10815.51185814,0.00021817,3]
[348868311,1736833832890,-160.0,0.00021817,3]
[348868313,1736833832899,-4960.96631234,0.00021886,2]
[348868315,1736833832911,-10852.40186735,0.00021886,2]
[348868317,1736833832921,-150.0,0.000219,2]
[348868319,1736833832930,-290.31948899,0.00021916,2]
[348868321,1736833832940,-51286.42240125,0.00021917,5]
[348868331,1736833833031,-7248.2075533,0.00021917,5]
[348868333,1736833833041,-7782.11267273,0.00021917,5]
[348868335,1736833833051,-159.02,0.00021917,2]
[348868337,1736833833060,-152.354394,0.00021917,2]
[348868339,1736833833072,-151.0,0.00021917,2]
[348868341,1736833833082,-151.0,0.00021917,2]
[348868343,1736833833091,-151.0,0.00021917,2]
[348868346,1736833833102,-151.0,0.00021917,2]
[348868348,1736833833112,-501.72011896,0.00021917,3]
[348868350,1736833833122,-151.0,0.00021917,2]
[348868352,1736833833132,-155.070074,0.00021917,2]
[348868354,1736833833142,-503.45161485,0.00021917,3]
[348868356,1736833833152,-500.0,0.00021917,3]
[348868358,1736833833161,-501.61982539,0.00021917,3]
[348868360,1736833833171,-500.0,0.00021917,3]
[348868362,1736833833180,-500.0,0.00021917,3]
[348868364,1736833833192,-777.64,0.00021917,3]
[348868366,1736833833203,-503.67615915,0.00021917,3]
[348868368,1736833833213,-500.59647944,0.00021917,3]
[348868370,1736833833224,-514.36866028,0.00021917,3]
[348868372,1736833833234,-220.92873437,0.00021917,3]
[348868374,1736833833243,-500.0,0.00021917,3]
[348868376,1736833833254,-500.0,0.00021917,3]
[348868378,1736833833264,-415.8385351,0.00021917,3]
[348868380,1736833833274,-500.0,0.00021917,3]
[348868382,1736833833284,-500.0,0.00021917,3]
[348868384,1736833833294,-502.3626727,0.00021917,3]
[348868386,1736833833304,-502.48507845,0.00021917,3]
[348868388,1736833833314,-500.0,0.00021917,3]
[348868390,1736833833323,-500.0,0.00021917,3]
[348868392,1736833833333,-500.89999666,0.00021917,3]
[348868395,1736833833343,-506.13830295,0.00021917,3]
[348868397,1736833833353,-500.0,0.00021917,3]
[348868399,1736833833363,-649.35372301,0.00021917,3]
[348868401,1736833833373,-500.0,0.00021917,3]
[348868403,1736833833382,-500.0,0.00021917,3]
[348868405,1736833833392,-500.0,0.00021917,3]
[348868407,1736833833402,-635.60966424,0.00021917,3]
[348868409,1736833833418,-500.0,0.00021917,3]
[348868410,1736833833428,-500.0,0.00021917,3]
[348868412,1736833833438,-500.0,0.00021917,3]
[348868414,1736833833448,-500.0,0.00021917,3]
[348868416,1736833833459,-581.7314597,0.00021917,3]
[348868419,1736833833469,-649.69,0.00021917,3]
[348868421,1736833833479,-502.54608752,0.00021917,3]
[348868422,1736833833494,-343.43153892,0.00021917,3]
[348868425,1736833833504,-500.0,0.00021917,3]
[348868427,1736833833514,-500.0,0.00021917,3]
[348868429,1736833833524,-502.24588475,0.00021917,3]
[348868430,1736833833535,-500.0,0.00021917,3]
[348868433,1736833833545,-500.0,0.00021917,3]
[348868434,1736833833555,-500.0,0.00021917,3]
[348868459,1736833833779,-500.0,0.00021917,3]
[348868462,1736833833791,-500.0,0.00021917,3]
[348868464,1736833833801,-500.0,0.00021917,3]
[348868466,1736833833810,-500.0,0.00021917,3]
[348868468,1736833833819,-500.0,0.00021917,3]
[348868470,1736833833829,-500.0,0.00021917,3]
[348868472,1736833833840,-500.0,0.00021917,3]
[348868474,1736833833850,-500.0,0.00021917,3]
[348868476,1736833833861,-500.0,0.00021917,3]
[348868478,1736833833873,-500.0,0.00021917,3]
[348868480,1736833833882,-500.0,0.00021917,3]
[348868482,1736833833892,-500.0,0.00021917,3]
[348868484,1736833833903,-470.51373741,0.00021917,3]
[348868486,1736833833913,-500.0,0.00021917,3]
[348868488,1736833833923,-500.0,0.00021917,3]
[348868490,1736833833932,-500.0,0.00021917,3]
[348868492,1736833833942,-500.0,0.00021917,3]
[348868494,1736833833952,-503.61286388,0.00021917,3]
[348868496,1736833833961,-501.31440922,0.00021917,3]
[348868498,1736833833971,-500.0,0.00021917,3]
[348868500,1736833833981,-500.0,0.00021917,3]
[348868502,1736833833991,-500.0,0.00021917,3]
[348868504,1736833834001,-421.17829964,0.00021917,3]
[348868506,1736833834011,-441.36105784,0.00021917,3]
[348868509,1736833834024,-500.0,0.00021917,3]
[348868511,1736833834034,-500.0,0.00021917,3]
[348868512,1736833834044,-500.0,0.00021917,3]
[348868515,1736833834054,-523.26603713,0.00021917,3]
[348868517,1736833834065,-500.0,0.00021917,3]
[348868519,1736833834076,-500.0,0.00021917,3]
[348868521,1736833834085,-500.0,0.00021917,3]
[348868523,1736833834098,-500.0,0.00021917,3]
[348868525,1736833834108,-500.0,0.00021917,3]
[348868527,1736833834117,-500.0,0.00021917,3]
[348868529,1736833834129,-500.0,0.00021917,3]
[348868531,1736833834139,-500.0,0.00021917,3]
[348868533,1736833834150,-504.31260052,0.00021917,3]
[348868535,1736833834160,-500.0,0.00021917,3]
[348868537,1736833834170,-500.0,0.00021917,3]
[348868539,1736833834181,-500.0,0.00021917,3]
[348868541,1736833834193,-506.95701305,0.00021917,3]
[348868544,1736833834203,-504.51589218,0.00021917,3]
[348868546,1736833834213,-500.0,0.00021917,3]
[348868547,1736833834222,-500.0,0.00021917,3]
[348868549,1736833834232,-500.0,0.00021917,3]
[348868552,1736833834242,-500.0,0.00021917,3]
[348868554,1736833834253,-500.0,0.00021917,3]
[348868556,1736833834262,-442.76077051,0.00021917,3]
[348868558,1736833834272,-500.0,0.00021917,3]
[348868560,1736833834281,-500.0,0.00021917,3]
[348868561,1736833834292,-500.0,0.00021917,3]
[348868563,1736833834302,-506.83,0.00021917,3]
[348868565,1736833834312,-500.0,0.00021917,3]
[348868567,1736833834322,-500.0,0.00021917,3]
[348868570,1736833834332,-500.0,0.00021917,3]
[348868571,1736833834342,-500.0,0.00021917,3]
[348868574,1736833834352,-505.60530238,0.00021917,3]
[348868576,1736833834361,-538.8370292,0.00021917,3]
[348868577,1736833834371,-500.0,0.00021917,3]
[348868580,1736833834382,-500.0,0.00021917,3]